bitfinex/quotes_BTCUSD_20241022
["timestamp","ask_amount","ask_price","bid_price","bid_amount"]
[1729557193496,0.149962,66684.0,66678.0,0.89971884]
[1729557193723,0.29891515,66686.0,66678.0,0.89971884]
[1729557193955,0.014,66687.0,66677.0,0.1832]
[1729557194178,0.149961,66684.0,66677.0,0.1832]
[1729557194467,0.40029146,66680.0,66677.0,0.1832]
[1729557194688,0.40029146,66680.0,66666.0,0.0823]
[1729557194689,0.149999,66667.0,66666.0,0.0823]
[1729557194916,0.299974,66673.0,66666.0,0.0823]
[1729557195134,0.01360899,66672.0,66666.0,0.0823]
[1729557195363,0.149999,66667.0,66666.0,0.0823]
[1729557195621,0.149999,66667.0,66653.0,0.02]
[1729557195622,0.15501,66662.0,66653.0,0.02]
[1729557195850,0.16361899,66662.0,66653.0,0.02]
[1729557197261,0.16361103,66662.0,66653.0,0.02]
[1729557197478,0.01360103,66662.0,66661.0,0.079726]
[1729557197715,0.17449188,66662.0,66661.0,0.079726]
[1729557197952,0.16089085,66662.0,66661.0,0.079726]
[1729557198188,0.01088085,66662.0,66661.0,0.079726]
[1729557198424,0.02488085,66662.0,66661.0,0.079726]
[1729557198665,0.02424465,66671.0,66665.0,0.005]
[1729557198886,0.299863,66697.0,66661.0,0.26890945]
[1729557198887,0.40029146,66681.0,66666.0,0.1725]
[1729557199109,0.14895915,66680.0,66666.0,0.1725]
[1729557199332,0.149999,66667.0,66666.0,0.1725]
[1729557199523,0.14895915,66680.0,66667.0,0.22499044]
[1729557199524,0.01742057,66674.0,66667.0,0.22499044]
[1729557199780,0.149978,66677.0,66668.0,0.149995]
[1729557200005,0.149986,66673.0,66666.0,0.1725]
[1729557200232,0.014,66671.0,66666.0,0.1725]
[1729557200457,0.014,66671.0,66670.0,0.149992]
[1729557201620,0.001652,66683.0,66671.0,0.005]
[1729557201852,0.001652,66683.0,66682.0,0.149965]
[1729557202081,0.01742057,66691.0,66690.0,0.149947]
[1729557202311,0.01742057,66702.0,66693.0,0.149939]
[1729557202542,0.01907257,66701.0,66696.0,0.149932]
[1729557202766,0.001652,66701.0,66697.0,0.14993]
[1729557202985,0.001652,66701.0,66690.0,0.0762]
[1729557202986,0.001652,66701.0,66698.0,0.149928]
[1729557203479,0.001652,66701.0,66693.0,0.52487144]
[1729557203480,0.001652,66701.0,66700.0,0.54691544]
[1729557203716,0.29973,66727.0,66700.0,0.54691544]
[1729557203717,0.01742057,66717.0,66702.0,0.002]
[1729557203948,0.01742057,66717.0,66700.0,0.32095915]
[1729557203949,0.01742057,66717.0,66708.0,0.29981]
[1729557204179,0.01,66733.0,66708.0,0.29981]
[1729557204180,0.01742057,66716.0,66715.0,0.149891]
[1729557204418,0.005,66741.0,66715.0,0.149891]
[1729557204419,0.16728257,66728.0,66716.0,0.299778]
[1729557204651,0.16728257,66728.0,66715.0,0.1818]
[1729557204652,0.14895915,66727.0,66715.0,0.1818]
[1729557205117,0.149889,66716.0,66715.0,0.1818]
[1729557205353,0.299737,66725.0,66715.0,0.1818]
[1729557205571,0.299737,66725.0,66716.0,0.001]
[1729557205796,0.299733,66726.0,66715.0,0.1818]
[1729557206020,0.299719,66729.0,66719.0,0.22499044]
[1729557206264,0.01742057,66733.0,66715.0,0.1828]
[1729557206487,0.01742057,66733.0,66719.0,0.22499044]
[1729557206715,0.014,66716.0,66715.0,0.331691]
[1729557206937,0.2997,66734.0,66720.0,0.22499044]
[1729557207200,0.01742057,66738.0,66715.0,0.1818]
[1729557207425,0.149849,66734.0,66721.0,0.299755]
[1729557207663,0.149849,66734.0,66720.0,0.22499044]
[1729557207664,0.14895915,66737.0,66717.0,0.005]
[1729557207888,0.149844,66736.0,66720.0,0.22499044]
[1729557208111,0.29968,66738.0,66720.0,0.22499044]
[1729557208602,0.149831,66742.0,66733.0,0.149848]
[1729557208878,0.009,66738.0,66737.0,0.149841]
[1729557209384,0.00165,66748.0,66737.0,0.149841]
[1729557209385,0.00165,66748.0,66744.0,0.299651]
[1729557209680,0.00165,66748.0,66747.0,0.149819]
[1729557209873,0.00165,66748.0,66747.0,0.54917815]
[1729557210664,0.299559,66765.0,66749.0,0.149814]
[1729557210665,0.149785,66763.0,66749.0,0.149814]
[1729557210892,0.149784,66763.0,66749.0,0.4477323]
[1729557211321,0.001698,66768.0,66763.0,0.299564]
[1729557211325,0.001698,66768.0,66757.0,0.01]
[1729557211550,0.001698,66768.0,66767.0,0.149774]
[1729557212514,0.001698,66768.0,66767.0,0.229174]
[1729557213048,0.15147,66768.0,66767.0,0.0804]
[1729557213557,0.001698,66768.0,66767.0,0.0804]
[1729557213789,0.001698,66768.0,66767.0,0.231174]
[1729557213790,0.009698,66768.0,66767.0,0.231174]
[1729557214515,0.15947,66768.0,66767.0,0.0814]
[1729557214826,0.15947,66768.0,66767.0,0.231174]
[1729557214827,0.009698,66768.0,66767.0,0.231174]
[1729557216452,0.009698,66768.0,66767.0,0.0814]
[1729557216730,0.30842915,66768.0,66767.0,0.002]
[1729557217504,0.30842915,66768.0,66753.0,0.0811]
[1729557217505,0.15865715,66768.0,66753.0,0.0811]
[1729557217730,0.149819,66747.0,66745.0,0.1831]
[1729557217989,0.14895915,66764.0,66745.0,0.1831]
[1729557218236,0.149807,66753.0,66745.0,0.1831]
[1729557218473,0.14895915,66764.0,66752.0,0.149807]
[1729557218708,0.149787,66762.0,66748.0,0.149817]
[1729557218967,0.149774,66767.0,66760.0,0.149789]
[1729557219241,0.149788,66761.0,66753.0,0.149804]
[1729557219493,0.149806,66753.0,66748.0,0.22499044]
[1729557219730,0.149813,66750.0,66748.0,0.22499044]
[1729557220024,0.299571,66762.0,66748.0,0.22499044]
[1729557220259,0.29961,66754.0,66743.0,0.149827]
[1729557220517,0.149809,66752.0,66749.0,0.22499044]
[1729557220760,0.149806,66753.0,66749.0,0.22499044]
[1729557221006,0.149806,66753.0,66743.0,0.005]
[1729557221007,0.149795,66758.0,66747.0,0.299638]
[1729557221253,0.301246,66768.0,66751.0,0.149809]
[1729557221483,0.149793,66759.0,66752.0,0.149806]
[1729557221713,0.001698,66768.0,66752.0,0.14895915]
[1729557221960,0.299558,66765.0,66760.0,0.001]
[1729557222192,0.007,66767.0,66760.0,0.001]
[1729557222430,0.14895915,66766.0,66749.0,0.22499044]
[1729557222667,0.149797,66757.0,66756.0,0.22499044]
[1729557222906,0.55125061,66757.0,66751.0,0.001]
[1729557223153,0.149808,66752.0,66751.0,0.001]
[1729557223379,0.14981,66751.0,66750.0,0.22499044]
[1729557223866,0.299632,66749.0,66734.0,0.299692]
[1729557224125,0.002,66771.0,66733.0,0.005]
[1729557224126,0.299598,66756.0,66742.0,0.52465044]
[1729557224376,0.011,66757.0,66752.0,0.149807]
[1729557224625,0.011,66757.0,66753.0,0.00299581]
[1729557224865,0.011,66757.0,66751.0,0.449428]
[1729557225105,0.025,66757.0,66751.0,0.001]
[1729557225342,0.299563,66764.0,66754.0,0.149802]
[1729557225594,0.299464,66786.0,66763.0,0.0762]
[1729557225846,0.005,66792.0,66763.0,0.0762]
[1729557225847,0.149771,66769.0,66764.0,0.1898]
[1729557226067,0.598908,66788.0,66764.0,0.1898]
[1729557226271,0.299544,66769.0,66764.0,0.1898]
[1729557226544,0.149779,66765.0,66764.0,0.1898]
[1729557227036,0.149764,66772.0,66764.0,0.1898]
[1729557227281,0.299509,66776.0,66764.0,0.1898]
[1729557227282,0.299509,66776.0,66765.0,0.299558]
[1729557227563,0.14895915,66784.0,66770.0,0.149766]
[1729557227779,0.149756,66776.0,66769.0,0.149768]
[1729557228093,0.149751,66778.0,66765.0,0.299558]
[1729557228311,0.299467,66786.0,66765.0,0.299558]
[1729557228312,0.149747,66780.0,66770.0,0.22499044]
[1729557228540,0.313455,66788.0,66772.0,0.299526]
[1729557228541,0.014,66788.0,66772.0,0.299526]
[1729557228810,0.014,66788.0,66776.0,0.40029146]
[1729557229054,0.149717,66793.0,66777.0,0.15395915]
[1729557229298,0.14972,66792.0,66786.0,0.14973]
[1729557229538,0.299415,66797.0,66783.0,0.299476]
[1729557229777,0.01086031,66793.0,66787.0,0.22499044]
[1729557230027,0.014,66788.0,66787.0,0.149729]
[1729557230254,0.028,66788.0,66787.0,0.70339377]
[1729557230494,0.028,66788.0,66787.0,0.70397961]
[1729557230721,0.014,66788.0,66787.0,0.70397961]
[1729557230962,0.009,66788.0,66787.0,0.70397961]
[1729557231190,0.014,66793.0,66792.0,0.149718]
[1729557231629,0.014,66793.0,66792.0,0.849718]
[1729557232403,0.001698,66804.0,66803.0,0.149693]
[1729557232637,0.001698,66804.0,66803.0,0.332393]
[1729557233093,0.001698,66804.0,66803.0,0.40855915]
[1729557233314,0.001698,66804.0,66803.0,0.2596]
[1729557233549,0.001698,66804.0,66803.0,0.3005304]
[1729557233763,0.001698,66804.0,66803.0,1.10855915]
[1729557234021,0.001698,66804.0,66803.0,1.26325215]
[1729557234261,0.001698,66804.0,66803.0,0.9596]
[1729557234497,0.011698,66804.0,66803.0,0.9606]
[1729557234933,0.161389,66804.0,66803.0,0.2606]
[1729557235169,0.011698,66804.0,66803.0,0.2606]
[1729557236519,0.021698,66804.0,66803.0,0.2616]
[1729557237253,0.021698,66804.0,66803.0,0.9616]
[1729557237674,0.021698,66804.0,66803.0,1.111293]
[1729557237875,0.021698,66804.0,66803.0,0.9616]
[1729557238327,0.021698,66804.0,66803.0,1.111293]
[1729557238555,0.021698,66804.0,66803.0,0.9616]
[1729557238768,0.021698,66804.0,66803.0,1.111293]
[1729557238976,0.021698,66804.0,66803.0,1.4092113]
[1729557239436,0.021698,66804.0,66803.0,1.26025215]
[1729557239892,0.001698,66835.0,66825.0,0.005]
[1729557240123,0.01102964,66826.0,66825.0,1.03660315]
[1729557240354,0.01102964,66826.0,66825.0,1.01360315]
[1729557240583,0.01102964,66826.0,66825.0,1.1625623]
[1729557240807,0.01102964,66826.0,66825.0,1.1855623]
[1729557241045,0.001698,66835.0,66832.0,0.154628]
[1729557241254,0.001698,66835.0,66832.0,1.00358715]
[1729557241467,0.001698,66835.0,66832.0,1.03858715]
[1729557241684,0.001698,66835.0,66832.0,1.1875463]
[1729557241905,0.001698,66835.0,66832.0,1.3810463]
[1729557242335,0.299114,66865.0,66851.0,0.149586]
[1729557242544,0.149604,66843.0,66835.0,0.005]
[1729557242762,0.300783,66871.0,66836.0,0.7]
[1729557242763,0.149617,66837.0,66836.0,0.7]
[1729557243224,0.005,66858.0,66836.0,0.7]
[1729557243225,0.149605,66843.0,66836.0,0.7]
[1729557243446,0.299195,66847.0,66837.0,0.14895915]
[1729557243663,0.001696,66861.0,66838.0,0.7]
[1729557243866,0.149613,66839.0,66838.0,0.7]
[1729557244293,0.299204,66845.0,66838.0,0.84895915]
[1729557244521,0.149607,66842.0,66839.0,0.08539592]
[1729557246338,9e-05,66852.0,66851.0,0.90538421]
[1729557246539,9e-05,66852.0,66851.0,1.39137465]
[1729557246748,9e-05,66852.0,66851.0,1.35397021]
[1729557247165,0.00209,66852.0,66851.0,1.33097021]
[1729557247377,0.001696,66861.0,66860.0,0.164566]
[1729557247592,0.001696,66861.0,66860.0,0.84895915]
[1729557247803,0.15126,66861.0,66860.0,0.7]
[1729557248668,0.001696,66861.0,66860.0,0.001]
[1729557249102,0.149567,66860.0,66852.0,0.7]
[1729557249300,0.001696,66861.0,66856.0,0.22499044]
[1729557249549,0.001696,66861.0,66857.0,0.14895915]
[1729557249773,0.001696,66861.0,66859.0,0.7]
[1729557249994,0.001696,66861.0,66860.0,0.15195013]
[1729557250210,0.001696,66861.0,66860.0,0.14895915]
[1729557250647,0.001696,66861.0,66860.0,0.29852515]
[1729557250878,0.149567,66860.0,66856.0,0.001]
[1729557251109,0.004696,66861.0,66857.0,0.22499044]
[1729557251325,0.004696,66861.0,66856.0,0.14995915]
[1729557251326,0.006696,66861.0,66858.0,0.22499044]
[1729557251545,0.006696,66861.0,66856.0,0.001]
[1729557251762,0.15626,66861.0,66860.0,0.001]
[1729557251973,0.003696,66861.0,66852.0,0.299168]
[1729557252177,0.15326,66861.0,66856.0,0.22499044]
[1729557252398,0.006696,66861.0,66856.0,0.22499044]
[1729557252610,0.149566,66860.0,66856.0,0.22499044]
[1729557252830,0.004696,66861.0,66858.0,0.299137]
[1729557253042,0.004696,66861.0,66860.0,0.149566]
[1729557253280,0.004696,66861.0,66860.0,0.83681661]
[1729557253923,0.001696,66871.0,66860.0,0.83681661]
[1729557254141,0.001696,66871.0,66870.0,0.159543]
[1729557254341,0.001696,66871.0,66870.0,0.41360215]
[1729557254996,0.001696,66884.0,66883.0,0.149514]
[1729557255637,0.001696,66884.0,66883.0,0.29847315]
[1729557256329,0.001696,66884.0,66883.0,0.30347315]
[1729557256554,0.001696,66884.0,66883.0,0.6741323]
[1729557256792,0.001696,66884.0,66883.0,0.7741323]
[1729557256793,0.002696,66884.0,66883.0,0.7741323]
[1729557257017,0.003696,66884.0,66883.0,1.4741323]
[1729557257516,0.002696,66884.0,66883.0,1.4741323]
[1729557257975,0.001696,66884.0,66883.0,1.19717315]
[1729557258216,0.001696,66884.0,66883.0,1.03765915]
[1729557258449,0.001696,66884.0,66883.0,0.8887]
[1729557258693,0.001696,66884.0,66883.0,1.18717315]
[1729557258928,0.001696,66884.0,66883.0,1.19217315]
[1729557259146,0.001696,66884.0,66883.0,0.8887]
[1729557259389,0.001696,66884.0,66883.0,0.2017]
[1729557259584,0.151208,66884.0,66883.0,0.2007]
[1729557259800,0.001696,66884.0,66883.0,0.1887]
[1729557260230,0.001696,66884.0,66883.0,0.48817315]
[1729557260441,0.001696,66884.0,66883.0,0.60279866]
[1729557260653,0.001696,66884.0,66883.0,0.1897]
[1729557260866,0.151208,66884.0,66883.0,0.001]
[1729557261121,0.001696,66884.0,66883.0,0.002]
[1729557261745,0.001696,66884.0,66883.0,0.001]
[1729557262172,0.001696,66884.0,66883.0,0.149514]
[1729557262620,0.001696,66884.0,66876.0,0.23499044]
[1729557262621,0.149517,66882.0,66876.0,0.22499044]
[1729557262847,0.001696,66884.0,66877.0,0.14895915]
[1729557263063,0.001696,66884.0,66877.0,0.26278896]
[1729557263278,0.001696,66884.0,66883.0,0.149514]
[1729557263497,0.001696,66884.0,66883.0,0.30347315]
[1729557263714,0.001696,66884.0,66883.0,0.99847315]
[1729557264162,0.001696,66884.0,66883.0,0.7]
[1729557264400,0.151208,66884.0,66883.0,0.7]
[1729557264631,0.001696,66884.0,66883.0,0.07]
[1729557264918,0.001696,66884.0,66883.0,0.149514]
[1729557265756,0.001696,66884.0,66881.0,0.149517]
[1729557266000,0.001696,66884.0,66882.0,0.149516]
[1729557266193,0.001696,66884.0,66880.0,0.30404]
[1729557266194,0.001696,66884.0,66880.0,0.005]
[1729557266395,0.002696,66884.0,66880.0,0.14895915]
[1729557266615,0.002696,66884.0,66882.0,0.149514]
[1729557266837,0.151209,66884.0,66880.0,0.14895915]
[1729557267063,0.001696,66884.0,66871.0,0.000823]
[1729557267310,0.001696,66884.0,66872.0,0.92499044]
[1729557267311,0.149537,66873.0,66872.0,0.92499044]
[1729557267539,0.69936046,66874.0,66871.0,0.000823]
[1729557267540,0.149539,66872.0,66871.0,0.000823]
[1729557269305,0.16042954,66872.0,66871.0,0.000823]
[1729557269515,0.30938869,66872.0,66871.0,0.000823]
[1729557270163,0.31238869,66872.0,66871.0,0.000823]
[1729557270646,0.31338869,66872.0,66871.0,0.001823]
[1729557270883,0.31238869,66872.0,66871.0,0.000823]
[1729557271105,0.31338869,66872.0,66871.0,0.001823]
[1729557271367,0.16442954,66872.0,66871.0,0.001823]
[1729557271603,0.31038869,66872.0,66871.0,0.001823]
[1729557271828,0.31238869,66872.0,66871.0,0.002823]
[1729557272040,0.31438869,66872.0,66871.0,0.002823]
[1729557272257,0.31238869,66872.0,66871.0,0.002823]
[1729557274083,0.31403469,66872.0,66871.0,0.002823]
[1729557275229,0.01559222,66872.0,66871.0,0.002823]
[1729557275474,0.01559353,66872.0,66871.0,0.152364]
[1729557275700,0.01559353,66872.0,66871.0,0.2159397]
[1729557275701,0.004646,66872.0,66871.0,0.2159397]
[1729557275928,0.004646,66872.0,66871.0,0.2972397]
[1729557276161,0.004646,66872.0,66871.0,0.44827765]
[1729557276398,0.001646,66872.0,66871.0,0.44419885]
[1729557276825,0.006646,66872.0,66871.0,0.44419885]
[1729557277499,0.001646,66872.0,66871.0,0.44419885]
[1729557277928,0.002646,66872.0,66871.0,0.44419885]
[1729557278143,0.002646,66872.0,66871.0,0.45419885]
[1729557278369,0.006646,66872.0,66871.0,0.45419885]
[1729557278578,0.006646,66872.0,66871.0,0.082123]
[1729557278822,0.002646,66872.0,66871.0,0.082123]
[1729557279040,0.003646,66872.0,66871.0,0.082123]
[1729557279503,0.001646,66872.0,66871.0,0.082123]
[1729557279739,0.001646,66872.0,66871.0,0.001823]
[1729557279740,0.151185,66872.0,66871.0,0.001823]
[1729557279945,0.16313253,66872.0,66871.0,0.000823]
[1729557280440,0.16313253,66872.0,66871.0,0.002823]
[1729557280664,0.71238314,66872.0,66871.0,0.000823]
[1729557280885,0.71338314,66872.0,66871.0,0.000823]
[1729557281320,0.71238314,66872.0,66871.0,0.000823]
[1729557281548,0.71438314,66872.0,66871.0,0.000823]
[1729557282163,0.71238314,66872.0,66871.0,0.000823]
[1729557282380,0.72638314,66872.0,66871.0,0.001823]
[1729557282599,0.72538314,66872.0,66871.0,0.001823]
[1729557283022,0.71138314,66872.0,66871.0,0.000823]
[1729557283240,0.73938314,66872.0,66871.0,0.002823]
[1729557283678,0.72538314,66872.0,66871.0,0.001823]
[1729557284127,0.72538314,66872.0,66871.0,0.002823]
[1729557284343,0.73938314,66872.0,66871.0,0.002823]
[1729557284568,0.72538314,66872.0,66871.0,0.001823]
[1729557284780,0.73938314,66872.0,66871.0,0.002823]
[1729557286145,0.179185,66872.0,66871.0,0.002823]
[1729557286369,0.19013207,66872.0,66871.0,0.002823]
[1729557287305,0.74138268,66872.0,66871.0,0.002823]
[1729557287778,0.73938268,66872.0,66871.0,0.002823]
[1729557288001,0.74138268,66872.0,66871.0,0.002823]
[1729557288443,0.73543561,66872.0,66871.0,0.002823]
[1729557288668,0.72843561,66872.0,66871.0,0.002823]
[1729557289346,0.73343561,66872.0,66871.0,0.002823]
[1729557289567,0.74638976,66872.0,66871.0,0.002823]
[1729557289827,0.74438976,66872.0,66871.0,0.002823]
[1729557290039,0.74638976,66872.0,66871.0,0.002823]
[1729557290509,0.73938976,66872.0,66871.0,0.002823]
[1729557290759,0.74438976,66872.0,66871.0,0.002823]
[1729557290976,0.73938976,66872.0,66871.0,0.002823]
[1729557291212,0.3390983,66872.0,66871.0,0.002823]
[1729557291436,0.73938976,66872.0,66871.0,0.002823]
[1729557291920,0.149572,66857.0,66856.0,0.22499044]
[1729557292165,0.149572,66857.0,66842.0,0.22499044]
[1729557292166,0.007,66853.0,66842.0,0.22499044]
[1729557292411,0.55487946,66850.0,66842.0,0.22499044]
[1729557292650,0.149604,66843.0,66842.0,0.22499044]
[1729557292869,0.69885461,66843.0,66842.0,0.22499044]
[1729557293097,0.70980876,66843.0,66842.0,0.22499044]
[1729557293327,0.70980876,66843.0,66828.0,0.0796]
[1729557293328,0.149622,66835.0,66828.0,0.0796]
[1729557293553,0.69887261,66835.0,66828.0,0.0796]
[1729557293835,0.69887261,66835.0,66827.0,0.22499044]
[1729557293836,0.149626,66833.0,66827.0,0.22499044]
[1729557294080,0.29858515,66833.0,66828.0,0.22499044]
[1729557294315,0.3095393,66833.0,66828.0,0.22499044]
[1729557294999,0.16058015,66833.0,66828.0,0.22499044]
[1729557295220,0.01095415,66834.0,66828.0,0.22499044]
[1729557295507,0.149626,66833.0,66828.0,0.22499044]
[1729557295712,0.160624,66835.0,66829.0,0.149634]
[1729557295927,0.014,66833.0,66830.0,0.149631]
[1729557296149,0.014,66833.0,66832.0,0.150452]
[1729557296362,0.014,66833.0,66832.0,0.000824]
[1729557296871,0.014,66833.0,66832.0,0.150452]
[1729557297077,0.028,66833.0,66832.0,0.150452]
[1729557297295,0.014,66833.0,66832.0,0.150452]
[1729557297549,0.009,66833.0,66832.0,0.150452]
[1729557297760,0.011,66835.0,66832.0,0.150452]
[1729557297981,0.149626,66833.0,66832.0,0.000824]
[1729557298198,0.69887661,66833.0,66832.0,0.000824]
[1729557298416,0.70981583,66833.0,66832.0,0.000824]
[1729557299301,0.71881583,66833.0,66832.0,0.000824]
[1729557299526,0.72581583,66833.0,66832.0,0.000824]
[1729557299757,0.72381583,66833.0,66832.0,0.000824]
[1729557299987,0.72581583,66833.0,66832.0,0.000824]
[1729557300272,0.8404998,66833.0,66832.0,1e-06]
[1729557300508,0.156655,66820.0,66819.0,0.22499044]
[1729557300744,0.70590561,66820.0,66819.0,0.22499044]
[1729557300990,0.72151305,66820.0,66819.0,0.22499044]
[1729557301199,0.149673,66812.0,66811.0,0.22499044]
[1729557301437,0.29863215,66812.0,66811.0,0.22499044]
[1729557301658,0.01092273,66812.0,66811.0,0.25646948]
[1729557301912,0.005,66828.0,66806.0,0.38917]
[1729557301913,0.299329,66816.0,66806.0,0.0898]
[1729557302167,0.299302,66822.0,66806.0,0.0898]
[1729557302374,0.14895915,66827.0,66814.0,0.149668]
[1729557302600,0.149654,66821.0,66811.0,0.48035]
[1729557302847,0.149639,66828.0,66822.0,0.149651]
[1729557303068,0.299258,66832.0,66815.0,0.0789]
[1729557303069,0.014,66820.0,66816.0,0.299329]
[1729557303343,0.014,66820.0,66819.0,0.149658]
[1729557304083,0.149641,66827.0,66821.0,0.149652]
[1729557304303,0.008,66820.0,66815.0,0.0789]
[1729557304529,0.008,66820.0,66817.0,0.149661]
[1729557305002,0.008,66820.0,66815.0,0.378232]
[1729557305003,0.008,66820.0,66819.0,0.149658]
[1729557305269,0.008,66820.0,66816.0,0.299329]
[1729557305744,0.008,66820.0,66815.0,0.0789]
[1729557305959,0.149664,66816.0,66815.0,0.0789]
[1729557306170,0.008,66820.0,66806.0,0.0898]
[1729557306171,0.149673,66812.0,66806.0,0.0898]
[1729557306388,0.14949302,66812.0,66806.0,0.0898]
[1729557306636,0.299316,66819.0,66806.0,0.0898]
[1729557306848,0.69958546,66824.0,66806.0,0.0898]
[1729557306849,0.299294,66824.0,66806.0,0.389171]
[1729557307112,0.149668,66815.0,66806.0,0.389171]
[1729557307351,0.40029146,66829.0,66812.0,0.22499044]
[1729557307352,0.004,66816.0,66812.0,0.22499044]
[1729557307582,0.004,66816.0,66812.0,0.00135277]
[1729557307832,0.004,66816.0,66809.0,0.299357]
[1729557307833,0.004,66816.0,66813.0,0.22499044]
[1729557308058,0.004,66816.0,66815.0,0.149666]
[1729557308293,0.40029146,66829.0,66809.0,0.299357]
[1729557308525,0.476,66845.0,66804.0,0.52661844]
[1729557308526,0.149673,66812.0,66804.0,0.002247]
[1729557308750,0.149681,66809.0,66804.0,0.002247]
[1729557309211,0.149682,66808.0,66804.0,0.002247]
[1729557309439,0.299338,66814.0,66804.0,0.151937]
[1729557309725,0.299338,66814.0,66804.0,0.002247]
[1729557309948,0.54925061,66828.0,66810.0,0.149676]
[1729557310193,0.54925061,66828.0,66809.0,0.22499044]
[1729557310194,0.299284,66826.0,66809.0,0.149678]
[1729557310430,0.54925061,66828.0,66804.0,0.301628]
[1729557310431,0.149672,66813.0,66810.0,0.22499044]
[1729557310656,0.149673,66812.0,66811.0,0.000825]
[1729557310896,0.002,66814.0,66811.0,0.000825]
[1729557311136,0.40029146,66823.0,66811.0,0.000825]
[1729557311137,0.149673,66812.0,66811.0,0.000825]
[1729557311805,0.149672,66813.0,66811.0,0.000825]
[1729557312022,0.29934,66814.0,66811.0,0.000825]
[1729557312900,0.299328,66817.0,66811.0,0.000825]
[1729557313159,0.149663,66817.0,66811.0,0.000825]
[1729557313612,0.004,66814.0,66811.0,0.1505]
[1729557313840,0.14966,66818.0,66811.0,0.1505]
[1729557314067,0.149663,66817.0,66811.0,0.1505]
[1729557314312,0.001,66813.0,66811.0,0.000825]
[1729557314761,0.299316,66819.0,66811.0,0.000825]
[1729557314981,0.004,66814.0,66812.0,0.149672]
[1729557315210,0.004,66814.0,66813.0,0.15266412]
[1729557315421,0.004,66814.0,66813.0,0.149671]
[1729557315863,0.004,66814.0,66811.0,0.000825]
[1729557316096,0.004,66814.0,66812.0,0.149673]
[1729557316311,0.004,66814.0,66811.0,0.000825]
[1729557316791,0.004,66814.0,66813.0,0.149671]
[1729557317007,0.004,66814.0,66813.0,0.29863015]
[1729557317257,0.0109298,66828.0,66813.0,0.14895915]
[1729557317514,0.149629,66832.0,66825.0,0.149643]
[1729557317742,0.0125798,66833.0,66822.0,0.0773]
[1729557317960,0.0125798,66833.0,66825.0,0.149643]
[1729557317961,0.149629,66832.0,66825.0,0.149643]
[1729557318403,0.00165,66833.0,66825.0,0.22499044]
[1729557318634,0.149633,66830.0,66825.0,0.22499044]
[1729557318849,0.29926,66832.0,66822.0,0.0773]
[1729557318850,0.03,66829.0,66822.0,0.0773]
[1729557319065,0.299275,66828.0,66823.0,0.22499044]
[1729557319290,0.29168207,66829.0,66822.0,0.0773]
[1729557319511,0.149649,66823.0,66822.0,0.0773]
[1729557319726,0.149659,66819.0,66816.0,0.22499044]
[1729557319939,0.299298,66824.0,66816.0,0.22499044]
[1729557320158,0.26168207,66828.0,66816.0,0.22499044]
[1729557320391,0.299289,66825.0,66818.0,0.14966]
[1729557320637,0.01095388,66824.0,66818.0,0.29932]
[1729557320858,0.26168207,66821.0,66814.0,0.186]
[1729557321075,0.149662,66817.0,66816.0,0.001]
[1729557321334,0.149666,66815.0,66814.0,0.186]
[1729557321597,0.149666,66815.0,66811.0,0.078025]
[1729557321598,0.149673,66812.0,66811.0,0.000825]
[1729557321805,0.005,66810.0,66788.0,0.22499044]
[1729557322038,0.149709,66796.0,66788.0,0.22499044]
[1729557322273,0.16067356,66796.0,66788.0,0.22499044]
[1729557322486,0.149725,66789.0,66788.0,0.22499044]
[1729557322734,0.41140707,66789.0,66788.0,0.22499044]
[1729557322946,0.42237163,66789.0,66788.0,0.22499044]
[1729557323163,0.149733,66786.0,66778.0,0.149748]
[1729557323398,0.26168207,66789.0,66783.0,0.22499044]
[1729557323632,0.299462,66787.0,66777.0,0.14975]
[1729557323894,0.26168207,66789.0,66777.0,0.14975]
[1729557324108,0.14974,66783.0,66775.0,0.30269044]
[1729557324352,0.449161,66791.0,66782.0,0.22499044]
[1729557324580,0.001,66786.0,66783.0,0.149737]
[1729557325040,0.002,66786.0,66785.0,0.149734]
[1729557325269,0.002,66786.0,66785.0,0.29869315]
[1729557325488,0.001,66786.0,66778.0,0.001]
[1729557325935,0.001,66786.0,66781.0,0.149742]
[1729557326158,0.001,66786.0,66785.0,0.149734]
[1729557326427,0.001,66786.0,66785.0,0.30168739]
[1729557326642,0.005,66819.0,66785.0,0.30168739]
[1729557326643,0.299293,66824.0,66810.0,0.149678]
[1729557326899,0.14966,66818.0,66810.0,0.149677]
[1729557327134,0.149661,66818.0,66811.0,0.227875]
[1729557327373,0.40172068,66827.0,66811.0,0.227875]
[1729557327374,0.40337068,66832.0,66812.0,0.0710537]
[1729557327596,0.299289,66825.0,66812.0,0.149673]
[1729557327824,0.149658,66819.0,66813.0,0.22499044]
[1729557328543,0.014,66824.0,66813.0,0.22499044]
[1729557328764,0.01094483,66825.0,66813.0,0.10420566]
[1729557329010,0.149653,66822.0,66811.0,0.377549]
[1729557329225,0.40337068,66832.0,66811.0,0.0782]
[1729557329226,0.001,66819.0,66811.0,0.0782]
[1729557329438,0.14966,66818.0,66811.0,0.0782]
[1729557329650,0.14967,66814.0,66811.0,0.0782]
[1729557329868,0.149673,66812.0,66811.0,0.0782]
[1729557330410,0.14968,66809.0,66808.0,0.1833]
[1729557330631,0.40172068,66814.0,66802.0,0.22499044]
[1729557330881,0.149687,66806.0,66802.0,0.22499044]
[1729557331136,0.149696,66802.0,66801.0,0.0794]
[1729557331384,0.149709,66796.0,66795.0,0.22499044]
[1729557331597,0.149711,66795.0,66788.0,0.0771]
[1729557331837,0.149711,66795.0,66788.0,0.226827]
[1729557332060,0.299397,66801.0,66794.0,0.20026537]
[1729557332285,0.149711,66795.0,66794.0,0.20026537]